fUST/lending_fUST_20260118
["ID","MTS","AMOUNT","RATE_DAILY","PERIOD"]
[402465232,1768681858154,-582.1,0.00016712,3]
[402465234,1768681858163,-151.0,0.00016712,2]
[402465235,1768681858172,-500.0,0.00016712,3]
[402465237,1768681858182,-302.42547068,0.00016712,3]
[402465239,1768681858191,-2076.46,0.00016712,3]
[402465241,1768681858200,-151.0,0.00016712,2]
[402465243,1768681858210,-412.6225604,0.00016712,3]
[402465245,1768681858219,-500.0,0.00016712,3]
[402465247,1768681858229,-500.0,0.00016712,3]
[402465249,1768681858239,-298.75076,0.00016712,2]
[402465251,1768681858248,-576.72,0.00016712,3]
[402465253,1768681858257,-693.13,0.00016712,3]
[402465255,1768681858267,-624.31598401,0.00016712,3]
[402465257,1768681858276,-500.0,0.00016712,3]
[402465259,1768681858285,-500.0,0.00016712,3]
[402465261,1768681858295,-500.0,0.00016712,3]
[402465263,1768681858304,-500.0,0.00016712,3]
[402465265,1768681858313,-500.0,0.00016712,3]
[402465267,1768681858323,-500.0,0.00016712,3]
[402465269,1768681858332,-1009.69,0.00016712,3]
[402465271,1768681858342,-500.0,0.00016712,3]
[402465273,1768681858357,-500.0,0.00016712,3]
[402465275,1768681858367,-500.0,0.00016712,3]
[402465277,1768681858376,-500.0,0.00016712,3]
[402465279,1768681858385,-500.0,0.00016712,3]
[402465281,1768681858394,-500.0,0.00016712,3]
[402465283,1768681858403,-500.0,0.00016712,3]
[402465285,1768681858412,-596.26,0.00016712,3]
[402465287,1768681858421,-1233.71,0.00016712,3]
[402465289,1768681858429,-500.0,0.00016712,3]
[402465290,1768681858438,-1191.65,0.00016712,3]
[402465292,1768681858447,-1000.0,0.00016712,2]
[402465294,1768681858456,-500.0,0.00016712,3]
[402465296,1768681858466,-253.82902155,0.00016712,3]
[402465298,1768681858475,-500.0,0.00016712,3]
[402465300,1768681858484,-834.54,0.00016712,3]
[402465302,1768681858493,-500.0,0.00016712,3]
[402465304,1768681858501,-500.0,0.00016712,3]
[402465306,1768681858510,-1069.23,0.00016712,3]
[402465308,1768681858520,-500.0,0.00016712,3]
[402465310,1768681858528,-500.0,0.00016712,3]
[402465312,1768681858538,-500.0,0.00016712,3]
[402465314,1768681858547,-600.21,0.00016712,3]
[402465316,1768681858556,-500.0,0.00016712,3]
[402465318,1768681858566,-500.0,0.00016712,3]
[402465320,1768681858575,-500.0,0.00016712,3]
[402465322,1768681858584,-500.0,0.00016712,3]
[402465324,1768681858593,-500.0,0.00016712,3]
[402465326,1768681858602,-701.17,0.00016712,3]
[402465328,1768681858611,-304.69534223,0.00016712,3]
[402465330,1768681858621,-500.0,0.00016712,3]
[402465332,1768681858630,-443.90722234,0.00016712,3]
[402465334,1768681858639,-500.0,0.00016712,3]
[402465336,1768681858648,-500.0,0.00016712,3]
[402465338,1768681858658,-500.0,0.00016712,3]
[402465339,1768681858667,-1264.47,0.00016712,3]
[402465341,1768681858676,-500.0,0.00016712,3]
[402465343,1768681858685,-1656.75,0.00016712,3]
[402465345,1768681858694,-604.25264706,0.00016712,3]
[402465347,1768681858703,-645.0,0.00016712,3]
[402465349,1768681858712,-500.0,0.00016712,3]
[402465350,1768681858722,-1002.99,0.00016712,3]
[402465351,1768681858731,-500.0,0.00016712,3]
[402465352,1768681858740,-2176.82,0.00016712,3]
[402465353,1768681858750,-500.0,0.00016712,3]
[402465354,1768681858759,-500.0,0.00016712,3]
[402465355,1768681858769,-500.0,0.00016712,3]
[402465356,1768681858779,-531.28,0.00016712,3]
[402465357,1768681858788,-500.0,0.00016712,3]
[402465358,1768681858798,-500.0,0.00016712,3]
[402465359,1768681858807,-605.0,0.00016712,3]
[402465360,1768681858817,-500.0,0.00016712,3]
[402465361,1768681858826,-500.0,0.00016712,3]
[402465362,1768681858836,-1395.51,0.00016712,3]
[402465363,1768681858846,-500.0,0.00016712,3]
[402465364,1768681858856,-801.52,0.00016712,3]
[402465365,1768681858864,-1281.78,0.00016712,3]
[402465366,1768681858873,-1113.91,0.00016712,3]
[402465367,1768681858883,-1331.60505822,0.00016712,3]
[402465368,1768681858892,-500.0,0.00016712,3]
[402465369,1768681858903,-500.0,0.00016712,3]
[402465370,1768681858912,-500.0,0.00016712,3]
[402465371,1768681858921,-595.68293991,0.00016712,3]
[402465372,1768681858931,-500.0,0.00016712,3]
[402465373,1768681858940,-766.79,0.00016712,3]
[402465374,1768681858949,-500.0,0.00016712,3]
[402465375,1768681858961,-500.0,0.00016712,3]
[402465376,1768681858970,-500.0,0.00016712,3]
[402465377,1768681858980,-926.04,0.00016712,3]
[402465378,1768681858989,-500.0,0.00016712,3]
[402465379,1768681859000,-2880.81,0.00016712,3]
[402465380,1768681859009,-500.0,0.00016712,3]
[402465381,1768681859019,-500.0,0.00016712,3]
[402465382,1768681859028,-500.0,0.00016712,3]
[402465383,1768681859038,-532.59,0.00016712,3]
[402465384,1768681859048,-465.90987905,0.00016712,3]
[402465385,1768681859058,-1061.24,0.00016712,3]
[402465386,1768681859067,-642.42,0.00016712,3]
[402465387,1768681859076,-500.0,0.00016712,3]
[402465388,1768681859086,-500.0,0.00016712,3]
[402465389,1768681859095,-500.0,0.00016712,3]
[402465390,1768681859106,-533.25,0.00016712,3]
[402465391,1768681859115,-597.25,0.00016712,3]
[402465392,1768681859125,-500.0,0.00016712,3]
[402465393,1768681859134,-500.0,0.00016712,3]
[402465394,1768681859143,-500.0,0.00016712,3]
[402465395,1768681859152,-500.0,0.00016712,3]
[402465396,1768681859161,-500.0,0.00016712,3]
[402465397,1768681859170,-505.83,0.00016712,3]
[402465398,1768681859179,-500.0,0.00016712,3]
[402465399,1768681859188,-538.58,0.00016712,3]
[402465400,1768681859197,-500.0,0.00016712,3]
[402465401,1768681859207,-1116.75,0.00016712,3]
[402465402,1768681859216,-500.0,0.00016712,3]
[402465403,1768681859225,-500.0,0.00016712,3]
[402465404,1768681859235,-775.8,0.00016712,3]
[402465405,1768681859245,-500.0,0.00016712,3]
[402465406,1768681859255,-6357.57,0.00016712,3]
[402465407,1768681859264,-694.52,0.00016712,3]
[402465408,1768681859274,-936.78,0.00016712,3]
[402465409,1768681859283,-500.0,0.00016712,3]
[402465410,1768681859292,-500.0,0.00016712,3]
[402465411,1768681859301,-500.0,0.00016712,3]
[402465412,1768681859311,-500.0,0.00016712,3]
[402465413,1768681859321,-500.0,0.00016712,3]
[402465414,1768681859330,-872.79,0.00016712,3]
[402465415,1768681859339,-500.0,0.00016712,3]
[402465416,1768681859352,-500.0,0.00016712,3]
[402465417,1768681859361,-746.14,0.00016712,3]
[402465418,1768681859371,-500.0,0.00016712,3]
[402465419,1768681859381,-500.0,0.00016712,3]
[402465420,1768681859390,-500.0,0.00016712,3]
[402465421,1768681859400,-1846.68,0.00016712,3]
[402465422,1768681859409,-688.55,0.00016712,3]
[402465423,1768681859419,-500.0,0.00016712,3]
[402465424,1768681859428,-500.0,0.00016712,3]
[402465425,1768681859438,-1265.32,0.00016712,3]
[402465427,1768681859450,-500.0,0.00016712,3]
[402465429,1768681859460,-500.0,0.00016712,3]
[402465431,1768681859470,-500.0,0.00016712,3]
[402465433,1768681859481,-500.0,0.00016712,3]
[402465435,1768681859491,-1387.64,0.00016712,3]
[402465437,1768681859500,-664.91,0.00016712,3]
[402465439,1768681859511,-784.96,0.00016712,3]
[402465441,1768681859520,-1084.91,0.00016712,3]
[402465443,1768681859530,-1435.11,0.00016712,3]
[402465445,1768681859539,-500.0,0.00016712,3]
[402465446,1768681859549,-500.0,0.00016712,3]
[402465447,1768681859559,-500.0,0.00016712,3]
[402465448,1768681859568,-500.0,0.00016712,3]
[402465449,1768681859578,-500.0,0.00016712,3]
[402465450,1768681859588,-553.03,0.00016712,3]
[402465451,1768681859599,-618.08,0.00016712,3]
[402465452,1768681859614,-500.0,0.00016712,3]
[402465453,1768681859624,-704.85,0.00016712,3]
[402465454,1768681859634,-948.78,0.00016712,3]
[402465455,1768681859643,-500.0,0.00016712,3]
[402465456,1768681859653,-738.57,0.00016712,3]
[402465457,1768681859663,-992.96,0.00016712,3]
[402465458,1768681859681,-500.0,0.00016712,3]
[402465459,1768681859700,-500.0,0.00016712,3]
[402465460,1768681859709,-500.0,0.00016712,3]
[402465461,1768681859719,-500.0,0.00016712,3]
[402465462,1768681859730,-597.06,0.00016712,3]
[402465463,1768681859740,-500.0,0.00016712,3]
[402465464,1768681859751,-500.0,0.00016712,3]
[402465465,1768681859760,-500.0,0.00016712,3]
[402465466,1768681859770,-500.0,0.00016712,3]
[402465467,1768681859780,-500.0,0.00016712,3]
[402465468,1768681859790,-500.0,0.00016712,3]
[402465469,1768681859799,-500.0,0.00016712,3]
[402465470,1768681859810,-500.0,0.00016712,3]
[402465471,1768681859820,-500.0,0.00016712,3]
[402465472,1768681859830,-1175.75,0.00016712,3]
[402465473,1768681859842,-238.33114,0.00016712,3]
[402465474,1768681859852,-500.0,0.00016712,3]
[402465475,1768681859863,-500.0,0.00016712,3]
[402465476,1768681859874,-1893.94,0.00016712,3]
[402465477,1768681859884,-500.0,0.00016712,3]
[402465478,1768681859894,-500.0,0.00016712,3]
[402465479,1768681859904,-596.66,0.00016712,3]
[402465480,1768681859914,-500.0,0.00016712,3]
[402465481,1768681859924,-500.0,0.00016712,3]
[402465482,1768681859934,-1323.23,0.00016712,3]
[402465483,1768681859944,-979.4,0.00016712,3]
[402465484,1768681859955,-216.1398381,0.00016712,3]
[402465485,1768681859965,-1256.22,0.00016712,3]
[402465486,1768681859975,-500.0,0.00016712,3]
[402465487,1768681859984,-500.0,0.00016712,3]
[402465488,1768681859994,-500.0,0.00016712,3]
[402465489,1768681860004,-500.0,0.00016712,3]
[402465490,1768681860015,-1087.65,0.00016712,3]
[402465491,1768681860025,-500.0,0.00016712,3]
[402465492,1768681860035,-500.0,0.00016712,3]
[402465493,1768681860045,-609.19,0.00016712,3]
[402465494,1768681860054,-1057.38,0.00016712,3]
[402465495,1768681860064,-500.0,0.00016712,3]
[402465496,1768681860074,-500.0,0.00016712,3]
[402465497,1768681860084,-647.35,0.00016712,3]
[402465498,1768681860094,-2125.85,0.00016712,3]
[402465499,1768681860103,-500.0,0.00016712,3]
[402465500,1768681860113,-500.0,0.00016712,3]
[402465501,1768681860123,-500.0,0.00016712,3]
[402465502,1768681860133,-500.0,0.00016712,3]
[402465503,1768681860143,-563.42,0.00016712,3]
[402465504,1768681860152,-500.0,0.00016712,3]
[402465505,1768681860162,-1719.73,0.00016712,3]
[402465506,1768681860172,-658.84,0.00016712,3]
[402465507,1768681860181,-500.0,0.00016712,3]
[402465508,1768681860191,-500.0,0.00016712,3]
[402465509,1768681860201,-500.0,0.00016712,3]
[402465510,1768681860211,-1244.06,0.00016712,3]
[402465511,1768681860221,-500.0,0.00016712,3]
[402465512,1768681860231,-500.0,0.00016712,3]
[402465513,1768681860240,-500.0,0.00016712,3]
[402465514,1768681860249,-500.0,0.00016712,3]
[402465515,1768681860259,-500.0,0.00016712,3]
[402465516,1768681860268,-2390.17,0.00016712,3]
[402465517,1768681860278,-500.0,0.00016712,2]
[402465518,1768681860287,-500.0,0.00016712,3]
[402465519,1768681860297,-500.0,0.00016712,3]
[402465520,1768681860307,-151.0,0.00016712,2]
[402465521,1768681860317,-500.0,0.00016712,3]
[402465522,1768681860327,-151.0,0.00016712,2]
[402465523,1768681860337,-500.0,0.00016712,3]
[402465524,1768681860350,-151.0,0.00016712,2]
[402465525,1768681860360,-500.0,0.00016712,3]
[402465526,1768681860371,-982.35,0.00016712,3]
[402465527,1768681860381,-212.54773642,0.00016985,2]
[402465528,1768681860394,-500.0,0.00016986,3]
[402465529,1768681860404,-500.0,0.00016986,3]
[402465530,1768681860416,-155.33823981,0.00016986,3]
[402465531,1768681860426,-580.78,0.00016986,3]
[402465532,1768681860436,-500.0,0.00016986,3]
[402465533,1768681860447,-500.0,0.00016986,3]
[402465534,1768681860457,-500.0,0.00016986,3]
[402465535,1768681860469,-500.0,0.00016986,3]
[402465536,1768681860479,-500.0,0.00016986,3]
[402465537,1768681860489,-500.0,0.00016986,3]
[402465538,1768681860499,-500.0,0.00016986,3]
[402465539,1768681860509,-500.0,0.00016986,3]
[402465540,1768681860519,-565.25,0.00016986,3]
[402465541,1768681860529,-275.02958199,0.00016986,3]
[402465542,1768681860540,-500.0,0.00016986,3]
[402465543,1768681860550,-763.31,0.00016986,3]
[402465544,1768681860560,-500.0,0.00016986,3]
[402465545,1768681860570,-722.15,0.00016986,3]
[402465546,1768681860579,-500.0,0.00016986,3]
[402465547,1768681860589,-500.0,0.00016986,3]
[402465548,1768681860599,-500.0,0.00016986,3]
[402465549,1768681860608,-500.0,0.00016986,3]
[402465550,1768681860618,-696.17,0.00016986,3]
[402465551,1768681860628,-500.0,0.00016986,3]
[402465552,1768681860638,-705.46,0.00016986,3]
[402465553,1768681860648,-500.0,0.00016986,3]
[402465554,1768681860658,-500.0,0.00016986,3]
[402465555,1768681860668,-713.49,0.00016986,3]
[402465556,1768681860678,-500.0,0.00016986,3]
[402465558,1768681860688,-500.0,0.00016986,3]
[402465560,1768681860698,-500.0,0.00016986,3]
[402465562,1768681860707,-780.5,0.00016986,3]
[402465564,1768681860718,-500.0,0.00016986,3]
[402465566,1768681860728,-151.0,0.00016986,3]
[402465568,1768681860737,-500.0,0.00016986,3]
[402465570,1768681860746,-500.0,0.00016986,3]
[402465572,1768681860757,-500.0,0.00016986,3]
[402465574,1768681860766,-695.66,0.00016986,3]
[402465576,1768681860776,-500.0,0.00016986,3]
[402465578,1768681860786,-768.86,0.00016986,3]
[402465580,1768681860795,-500.0,0.00016986,3]
[402465582,1768681860805,-500.0,0.00016986,3]
[402465584,1768681860815,-631.14,0.00016986,3]
[402465586,1768681860825,-500.0,0.00016986,3]
[402465588,1768681860835,-500.0,0.00016986,3]
[402465590,1768681860845,-500.0,0.00016986,3]
[402465592,1768681860855,-435.32524061,0.00016986,3]
[402465594,1768681860865,-500.0,0.00016986,3]
[402465595,1768681860875,-1000.0,0.00016986,2]
[402465597,1768681860884,-500.0,0.00016986,3]
[402465599,1768681860894,-500.0,0.00016986,3]
[402465601,1768681860904,-517.59,0.00016986,3]
[402465603,1768681860914,-500.0,0.00016986,3]
[402465605,1768681860924,-500.0,0.00016986,3]
[402465608,1768681860934,-1029.98,0.00016986,3]
[402465609,1768681860944,-500.0,0.00016986,3]
[402465610,1768681860954,-359.73801273,0.00016986,3]
[402465612,1768681860964,-500.0,0.00016986,3]
[402465614,1768681860974,-500.0,0.00016986,3]
[402465616,1768681860984,-544.65,0.00016986,3]
[402465618,1768681860993,-916.32,0.00016986,3]
[402465620,1768681861003,-500.0,0.00016986,3]
[402465622,1768681861012,-695.81,0.00016986,3]
[402465624,1768681861022,-500.0,0.00016986,3]
[402465626,1768681861032,-500.0,0.00016986,3]
[402465628,1768681861042,-500.0,0.00016986,3]
[402465630,1768681861052,-500.0,0.00016986,3]
[402465632,1768681861062,-500.0,0.00016986,3]
[402465634,1768681861073,-575.03830885,0.00016986,3]
[402465636,1768681861084,-500.0,0.00016986,3]
[402465638,1768681861096,-934.07,0.00016986,3]
[402465640,1768681861108,-500.0,0.00016986,3]
[402465642,1768681861118,-681.27,0.00016986,3]
[402465644,1768681861127,-500.0,0.00016986,3]
[402465646,1768681861137,-629.37,0.00016986,3]
[402465648,1768681861147,-500.0,0.00016986,3]
[402465650,1768681861156,-500.0,0.00016986,3]
[402465652,1768681861166,-500.0,0.00016986,3]
[402465654,1768681861176,-1038.14,0.00016986,3]
[402465656,1768681861186,-506.3,0.00016986,3]
[402465658,1768681861196,-500.0,0.00016986,3]
[402465660,1768681861207,-500.0,0.00016986,3]
[402465662,1768681861217,-500.0,0.00016986,3]
[402465664,1768681861227,-500.0,0.00016986,3]
[402465666,1768681861236,-664.13,0.00016986,3]
[402465668,1768681861246,-588.61,0.00016986,3]
[402465670,1768681861256,-500.0,0.00016986,3]
[402465672,1768681861266,-535.16,0.00016986,3]
[402465674,1768681861276,-500.0,0.00016986,3]
[402465676,1768681861285,-500.0,0.00016986,3]
[402465678,1768681861295,-500.0,0.00016986,3]
[402465680,1768681861305,-500.0,0.00016986,3]
[402465682,1768681861314,-500.0,0.00016986,3]
[402465684,1768681861324,-554.51,0.00016986,3]
[402465686,1768681861334,-515.93,0.00016986,3]
[402465688,1768681861345,-500.0,0.00016986,3]
[402465690,1768681861356,-500.0,0.00016986,3]
[402465692,1768681861366,-500.0,0.00016986,3]
[402465694,1768681861376,-500.0,0.00016986,3]
[402465696,1768681861386,-500.0,0.00016986,3]
[402465698,1768681861396,-500.0,0.00016986,3]
[402465700,1768681861406,-500.0,0.00016986,3]
[402465702,1768681861415,-500.0,0.00016986,3]
[402465704,1768681861425,-500.0,0.00016986,3]
[402465706,1768681861435,-500.0,0.00016986,3]
[402465708,1768681861444,-500.0,0.00016986,3]
[402465710,1768681861455,-817.35,0.00016986,3]
[402465712,1768681861464,-610.5,0.00016986,3]
[402465714,1768681861473,-631.04,0.00016986,3]
[402465716,1768681861483,-500.0,0.00016986,3]
[402465718,1768681861492,-1078.53,0.00016986,3]
[402465720,1768681861502,-674.37,0.00016986,3]
[402465722,1768681861512,-727.61,0.00016986,3]
[402465724,1768681861522,-500.0,0.00016986,3]
[402465726,1768681861532,-990.96,0.00016986,3]
[402465728,1768681861542,-500.0,0.00016986,3]
[402465730,1768681861552,-1102.92,0.00016986,3]
[402465732,1768681861561,-1112.25,0.00016986,3]
[402465734,1768681861571,-500.0,0.00016986,3]
[402465736,1768681861580,-931.42,0.00016986,3]
[402465738,1768681861590,-500.0,0.00016986,3]
[402465740,1768681861599,-878.41,0.00016986,3]
[402465742,1768681861608,-500.0,0.00016986,3]
[402465744,1768681861618,-500.0,0.00016986,3]
[402465745,1768681861627,-1583.31,0.00016986,3]
[402465748,1768681861638,-500.0,0.00016986,3]
[402465750,1768681861647,-500.0,0.00016986,3]
[402465752,1768681861658,-557.32,0.00016986,3]
[402465754,1768681861669,-500.0,0.00016986,3]
[402465756,1768681861679,-500.0,0.00016986,3]
[402465786,1768681861949,-500.0,0.00016986,3]
[402465789,1768681861974,-643.1,0.00016986,3]
[402465791,1768681861984,-809.91,0.00016986,3]
[402465793,1768681861993,-500.0,0.00016986,3]
[402465795,1768681862003,-977.09,0.00016986,3]
[402465797,1768681862012,-842.55,0.00016986,3]
[402465799,1768681862022,-500.0,0.00016986,3]
[402465801,1768681862032,-500.0,0.00016986,2]
[402465803,1768681862042,-500.0,0.00016986,3]
[402465805,1768681862053,-500.0,0.00016986,3]
[402465807,1768681862063,-500.0,0.00016986,3]
[402465809,1768681862071,-500.0,0.00016986,3]
[402465811,1768681862081,-500.0,0.00016986,3]
[402465813,1768681862091,-500.0,0.00016986,3]
[402465815,1768681862101,-2043.56,0.00016986,3]
[402465817,1768681862111,-500.0,0.00016986,3]
[402465819,1768681862120,-500.0,0.00016986,3]
[402465821,1768681862131,-500.0,0.00016986,3]
[402465823,1768681862140,-750.53,0.00016986,3]
[402465825,1768681862150,-520.11533146,0.00016986,3]
[402465827,1768681862160,-500.0,0.00016986,3]
[402465829,1768681862169,-585.43,0.00016986,3]
[402465831,1768681862178,-500.0,0.00016986,3]
[402465833,1768681862188,-500.0,0.00016986,3]
[402465835,1768681862197,-500.0,0.00016986,3]
[402465837,1768681862207,-1042.69,0.00016986,3]
[402465839,1768681862217,-500.0,0.00016986,3]
[402465841,1768681862226,-500.0,0.00016986,3]
[402465843,1768681862236,-1002.1,0.00016986,3]
[402465845,1768681862245,-500.0,0.00016986,3]
[402465847,1768681862255,-500.0,0.00016986,3]
[402465849,1768681862265,-500.0,0.00016986,3]
[402465851,1768681862274,-500.0,0.00016986,3]
[402465853,1768681862284,-500.0,0.00016986,3]
[402465855,1768681862294,-500.0,0.00016986,3]
[402465857,1768681862303,-500.0,0.00016986,3]
[402465859,1768681862313,-1395.26,0.00016986,3]
[402465861,1768681862322,-500.0,0.00016986,3]
[402465863,1768681862331,-500.0,0.00016986,3]
[402465865,1768681862340,-500.0,0.00016986,3]
[402465867,1768681862354,-500.0,0.00016986,3]
[402465869,1768681862363,-500.0,0.00016986,3]
[402465871,1768681862373,-1032.51,0.00016986,3]
[402465873,1768681862384,-500.0,0.00016986,3]
[402465875,1768681862402,-500.0,0.00016986,3]
[402465877,1768681862421,-500.0,0.00016986,3]
[402465879,1768681862441,-500.0,0.00016986,3]
[402465881,1768681862461,-1103.59,0.00016986,3]
[402465883,1768681862481,-1197.53,0.00016986,3]
[402465885,1768681862501,-272.75784748,0.00016986,3]
[402465887,1768681862521,-500.0,0.00016986,3]
[402465889,1768681862531,-500.0,0.00016986,3]
[402465891,1768681862540,-500.0,0.00016986,3]
[402465893,1768681862550,-500.0,0.00016986,3]
[402465895,1768681862559,-500.0,0.00016986,3]
[402465897,1768681862569,-500.0,0.00016986,3]
[402465899,1768681862579,-500.0,0.00016986,3]
[402465901,1768681862588,-500.0,0.00016986,3]
[402465903,1768681862597,-500.0,0.00016986,3]
[402465905,1768681862606,-1284.47,0.00016986,3]
[402465907,1768681862615,-520.45827499,0.00016986,3]
[402465909,1768681862625,-500.0,0.00016986,3]
[402465911,1768681862634,-500.0,0.00016986,3]
[402465913,1768681862643,-500.0,0.00016986,3]
[402465915,1768681862653,-500.0,0.00016986,3]
[402465917,1768681862662,-500.0,0.00016986,3]
[402465919,1768681862671,-500.0,0.00016986,3]
[402465921,1768681862681,-500.0,0.00016986,3]
[402465923,1768681862690,-500.0,0.00016986,3]
[402465925,1768681862700,-611.92,0.00016986,3]
[402465927,1768681862709,-989.39,0.00016986,3]
[402465929,1768681862718,-500.0,0.00016986,3]
[402465931,1768681862728,-500.0,0.00016986,3]
[402465933,1768681862738,-1037.36,0.00016986,3]
[402465935,1768681862747,-500.0,0.00016986,3]
[402465937,1768681862757,-596.44715493,0.00016986,3]
[402465939,1768681862766,-500.0,0.00016986,3]
[402465942,1768681862776,-857.53,0.00016986,3]
[402465944,1768681862786,-500.0,0.00016986,3]
[402465946,1768681862795,-500.0,0.00016986,3]
[402465947,1768681862804,-603.35,0.00016986,3]
[402465949,1768681862813,-500.0,0.00016986,3]
[402465951,1768681862822,-500.0,0.00016986,3]
[402465953,1768681862831,-961.19,0.00016986,3]
[402465955,1768681862840,-570.16,0.00016986,3]
[402465957,1768681862849,-500.0,0.00016986,3]
[402465959,1768681862858,-500.0,0.00016986,3]
[402465961,1768681862868,-584.81708203,0.00016986,3]
[402465963,1768681862877,-565.35,0.00016986,3]
[402465965,1768681862886,-575.62,0.00016986,3]
[402465967,1768681862896,-661.06,0.00016986,3]
[402465969,1768681862906,-500.0,0.00016986,3]
[402465971,1768681862915,-500.0,0.00016986,3]
[402465973,1768681862925,-500.0,0.00016986,3]
[402465975,1768681862936,-500.0,0.00016986,3]
[402465977,1768681862946,-500.0,0.00016986,3]
[402465979,1768681862956,-500.0,0.00016986,3]
[402465981,1768681862965,-500.0,0.00016986,3]
[402465983,1768681862975,-500.0,0.00016986,3]
[402465985,1768681862986,-297.32226087,0.00016986,3]
[402465987,1768681862995,-500.0,0.00016986,3]
[402465989,1768681863004,-500.0,0.00016986,3]
[402465991,1768681863014,-500.0,0.00016986,3]
[402465993,1768681863025,-1165.68,0.00016986,3]
[402465995,1768681863036,-500.0,0.00016986,3]
[402465997,1768681863047,-843.65,0.00016986,3]
[402465999,1768681863059,-1426.27,0.00016986,3]
[402466001,1768681863070,-500.0,0.00016986,3]
[402466003,1768681863079,-500.0,0.00016986,3]
[402466006,1768681863089,-500.0,0.00016986,3]
[402466008,1768681863100,-500.0,0.00016986,3]
[402466010,1768681863110,-500.0,0.00016986,3]
[402466012,1768681863120,-567.42,0.00016986,3]
[402466014,1768681863129,-500.0,0.00016986,3]
[402466016,1768681863139,-1224.65,0.00016986,3]
[402466018,1768681863148,-500.0,0.00016986,3]
[402466020,1768681863158,-500.0,0.00016986,3]
[402466022,1768681863167,-1384.99,0.00016986,3]
[402466024,1768681863176,-500.0,0.00016986,3]
[402466026,1768681863186,-1151.82,0.00016986,3]
[402466028,1768681863195,-768.13,0.00016986,3]
[402466030,1768681863204,-500.0,0.00016986,3]
[402466032,1768681863213,-500.0,0.00016986,3]
[402466034,1768681863223,-500.0,0.00016986,3]
[402466036,1768681863235,-500.0,0.00016986,3]
[402466038,1768681863244,-500.0,0.00016986,3]
[402466040,1768681863253,-500.0,0.00016986,3]
[402466042,1768681863262,-500.0,0.00016986,3]
[402466044,1768681863272,-500.0,0.00016986,3]
[402466046,1768681863281,-500.0,0.00016986,3]
[402466048,1768681863291,-500.0,0.00016986,3]
[402466050,1768681863299,-500.0,0.00016986,3]
[402466052,1768681863308,-500.0,0.00016986,3]
[402466054,1768681863317,-500.0,0.00016986,3]
[402466056,1768681863326,-500.0,0.00016986,3]
[402466058,1768681863335,-500.0,0.00016986,3]
[402466060,1768681863345,-738.28,0.00016986,3]
[402466062,1768681863356,-500.0,0.00016986,3]
[402466064,1768681863365,-1519.58,0.00016986,3]
[402466066,1768681863373,-500.0,0.00016986,3]
[402466068,1768681863382,-500.0,0.00016986,3]